bitfinex-derivatives/quotes_ETHF0:USTF0_20240829
["timestamp","ask_amount","ask_price","bid_price","bid_amount"]
[1724903225462,3.2078,2526.4,2526.3,0.39573]
[1724903225873,0.00592768,2526.5,2526.4,0.39572]
[1724903226076,0.00592768,2526.5,2526.4,1.13042]
[1724903230476,3.9703,2526.8,2526.7,0.39567]
[1724903230477,3.2078,2526.8,2526.7,0.39567]
[1724903230667,3.966,2527.1,2527.0,0.39562]
[1724903230865,3.2078,2527.4,2527.3,0.39558]
[1724903234176,3.2078,2527.4,2527.1,0.36063954]
[1724903234876,3.2078,2527.4,2527.3,0.39558]
[1724903239579,0.00593954,2527.6,2527.5,0.39554]
[1724903240991,0.00593954,2527.6,2527.5,4.35234]
[1724903241574,0.00593954,2527.6,2527.5,8.29194]
[1724903241784,0.00593954,2527.6,2527.5,9.28081]
[1724903241980,3.5593,2528.1,2528.0,0.39547]
[1724903242591,3.5593,2528.1,2527.6,4.79139]
[1724903242592,0.3514,2528.3,2528.2,0.39543]
[1724903245304,7.40873954,2528.5,2528.2,3.9552]
[1724903245482,7.40873954,2528.5,2528.4,0.3954]
[1724903245985,4.195,2529.0,2528.9,0.39532]
[1724903246188,3.2078,2529.1,2528.5,4.5194]
[1724903246392,3.2078,2529.1,2528.9,0.39531]
[1724903247391,3.2078,2529.1,2529.0,0.39531]
[1724903247795,3.42593954,2529.3,2529.0,0.39531]
[1724903248090,3.42593954,2529.3,2528.8,0.39533]
[1724903248986,6.6278,2529.1,2528.7,0.00593954]
[1724903249187,0.00593954,2529.3,2528.7,0.00593954]
[1724903249188,3.2078,2528.8,2528.7,0.00593954]
[1724903249693,7.5439,2528.8,2528.7,0.00593954]
[1724903252285,7.93924,2528.8,2528.7,0.00593954]
[1724903252589,14.53226,2528.8,2528.0,0.39546]
[1724903252889,3.2078,2528.2,2528.0,0.39546]
[1724903253090,0.3673,2528.1,2527.9,0.39547]
[1724903253895,0.3673,2528.1,2528.0,0.39547]
[1724903254286,0.3673,2528.1,2527.8,0.3747]
[1724903254489,0.3673,2528.1,2527.9,0.39548]
[1724903254794,0.3673,2528.1,2527.8,0.7702]
[1724903255388,0.3673,2528.1,2527.9,0.39548]
[1724903255898,0.3673,2528.1,2527.8,0.3747]
[1724903256392,3.2078,2527.9,2527.7,0.00593954]
[1724903256591,10.5838,2527.9,2527.7,0.00593954]
[1724903257195,4.3515,2527.8,2527.7,0.00593954]
[1724903257606,3.956,2527.8,2527.7,0.00593954]
[1724903262001,10.3515,2527.8,2527.7,0.00593954]
[1724903263308,3.956,2527.8,2527.7,0.00593954]
[1724903264094,4.3515,2527.8,2527.7,0.00593954]
[1724903264997,7.5593,2527.8,2527.7,0.00593954]
[1724903265201,13.5593,2527.8,2527.7,0.00593954]
[1724903266007,7.1638,2527.8,2527.7,0.00593954]
[1724903267604,7.5341,2527.8,2527.7,0.00593954]
[1724903268997,4.3263,2527.8,2527.7,0.00593954]
[1724903269298,7.5341,2527.8,2527.7,0.00593954]
[1724903270008,7.9296,2527.8,2527.7,0.00593954]
[1724903275505,4.7218,2527.8,2527.7,0.00593954]
[1724903275706,7.9296,2527.8,2527.7,0.00593954]
[1724903276509,8.05329114,2527.8,2527.7,0.00593954]
[1724903276707,7.9296,2527.8,2527.7,0.00593954]
[1724903277299,8.05328855,2527.8,2527.7,0.00593954]
[1724903279815,7.9296,2527.8,2527.7,0.00593954]
[1724903281719,8.05329014,2527.8,2527.7,0.00593954]
[1724903282318,8.05329003,2527.8,2527.7,0.00593954]
[1724903284508,7.9296,2527.8,2527.7,0.00593954]
[1724903286012,8.0532878,2527.8,2527.7,0.00593954]
[1724903289218,8.05328901,2527.8,2527.7,0.00593954]
[1724903289925,3.33148901,2527.8,2527.7,0.00593954]
[1724903290115,3.2078,2527.8,2527.7,4.35744954]
[1724903290314,0.00593954,2528.0,2527.9,0.39548]
[1724903290722,0.00593954,2528.0,2527.9,4.35148]
[1724903290924,0.00593954,2528.0,2527.9,10.35148]
[1724903291320,0.00593954,2528.0,2527.9,4.35148]
[1724903291525,0.40140954,2528.0,2527.8,0.356]
[1724903291824,0.00593954,2528.0,2527.8,0.356]
[1724903292024,0.00593954,2528.0,2527.8,0.75149]
[1724903293124,0.00593954,2528.0,2527.8,0.356]
[1724903293923,0.40140954,2528.0,2527.8,0.356]
[1724903294119,0.39548,2527.9,2527.8,0.356]
[1724903294321,0.5191578,2527.9,2527.7,0.00593954]
[1724903294518,3.3314778,2527.8,2527.7,0.00593954]
[1724903295829,3.2078,2527.8,2527.7,0.00593954]
[1724903296122,3.33147926,2527.8,2527.7,0.00593954]
[1724903296323,3.33147802,2527.8,2527.7,4.35744954]
[1724903296727,3.33147802,2527.8,2527.7,10.35744954]
[1724903296925,0.00593954,2528.0,2527.9,0.39548]
[1724903297119,0.12960081,2528.0,2527.9,0.39548]
[1724903297320,0.12960081,2528.0,2527.9,4.35148]
[1724903299314,0.00593954,2528.0,2527.9,4.35148]
[1724903299520,0.00593954,2528.0,2527.9,0.39548]
[1724903299729,0.12960007,2528.0,2527.9,0.39548]
[1724903301625,0.12960007,2528.0,2527.9,4.35148]
[1724903302222,0.12960007,2528.0,2527.9,0.39548]
[1724903302826,0.12960007,2528.0,2527.9,4.35148]
[1724903303131,0.12960052,2528.0,2527.9,4.35148]
[1724903303630,0.12960052,2528.0,2527.9,0.39548]
[1724903303832,0.12960052,2528.0,2527.9,4.35148]
[1724903304022,0.12960052,2528.0,2527.9,0.39548]
[1724903305032,0.12960052,2528.0,2527.9,4.35148]
[1724903305235,0.12960052,2528.0,2527.9,0.39548]
[1724903305434,0.12960052,2528.0,2527.9,10.35148]
[1724903306737,0.00593954,2528.0,2527.9,10.35148]
[1724903308029,0.12958966,2528.0,2527.9,10.35148]
[1724903308638,0.00593954,2528.0,2527.9,10.35148]
[1724903310133,0.00593954,2528.0,2527.9,11.34019]
[1724903310337,0.00593954,2528.0,2527.9,10.35148]
[1724903310537,0.00593954,2528.0,2527.9,4.35148]
[1724903312033,0.00593954,2528.0,2527.9,10.35148]
[1724903316137,0.00593954,2528.0,2527.9,11.77148]
[1724903316636,0.00593954,2528.0,2527.9,4.35148]
[1724903316938,0.39103954,2528.0,2527.9,4.35148]
[1724903317929,0.39103954,2528.0,2527.9,0.39548]
[1724903318236,0.39103954,2528.0,2527.7,0.40144954]
[1724903318237,5.47680954,2528.0,2527.7,0.40144954]
[1724903318443,3.2078,2527.8,2527.7,0.40144954]
[1724903319743,1.12533954,2528.0,2527.9,0.39548]
[1724903320045,1.24900316,2528.0,2527.9,0.39548]
[1724903323147,8.62500316,2528.0,2527.7,0.00593954]
[1724903323453,3.2078,2527.8,2527.7,0.00593954]
[1724903323953,3.33147646,2527.8,2527.7,0.00593954]
[1724903327047,3.2078,2527.8,2527.7,0.00593954]
[1724903327358,3.33147514,2527.8,2527.7,0.00593954]
[1724903327754,3.72697514,2527.8,2527.7,0.00593954]
[1724903328954,7.68297514,2527.8,2527.7,0.00593954]
[1724903329255,16.70747514,2527.8,2526.9,3.2078]
[1724903329450,3.2078,2527.3,2526.9,3.5678]
[1724903329753,0.50727514,2527.2,2527.1,0.39561]
[1724903330257,0.3836,2527.2,2527.1,4.35241]
[1724903335359,0.3684,2527.3,2527.2,0.39559]
[1724903335559,0.3711,2527.4,2527.3,0.39558]
[1724903335951,0.3711,2527.4,2527.3,4.35238]
[1724903336148,0.49478716,2527.4,2527.3,4.35238]
[1724903336357,0.3711,2527.4,2527.3,4.35238]
[1724903336556,0.3711,2527.4,2527.3,4.74008]
[1724903336861,0.3654,2527.5,2527.4,0.39556]
[1724903337066,0.48908484,2527.5,2527.4,0.39556]
[1724903337254,0.3654,2527.5,2527.4,0.39556]
[1724903337756,0.48908426,2527.5,2527.4,0.39556]
[1724903338455,0.48908426,2527.5,2527.4,4.35236]
[1724903338659,0.7395,2527.7,2527.6,0.39553]
[1724903338859,0.49197456,2527.7,2527.6,0.39553]
[1724903339163,0.3683,2527.7,2527.6,0.39553]
[1724903339663,4.9311,2527.9,2527.8,0.3955]
[1724903339856,1.22807167,2527.9,2527.8,0.3955]
[1724903340051,1.22807167,2527.9,2527.8,4.3515]
[1724903340262,1.22807167,2527.9,2527.8,3.956]
[1724903340460,1.22807167,2527.9,2527.8,0.3955]
[1724903340658,1.22807167,2527.9,2527.7,0.3955]
[1724903340860,0.12367167,2527.8,2527.7,0.3955]
[1724903343364,1.1044,2527.9,2527.7,0.3955]
[1724903343569,0.12367367,2527.8,2527.7,0.3955]
[1724903346168,0.12367367,2527.8,2527.6,0.39552]
[1724903346355,1.1044,2527.9,2527.6,0.39552]
[1724903346671,0.12367329,2527.8,2527.6,0.39552]
[1724903346974,1.1044,2527.9,2527.6,0.39552]
[1724903347363,0.1236731,2527.8,2527.6,0.39552]
[1724903347574,0.24734622,2527.8,2527.6,0.39552]
[1724903347872,0.1236731,2527.8,2527.6,0.39552]
[1724903348358,1.5436731,2527.8,2527.3,0.39556]
[1724903348560,3.72699778,2527.7,2527.4,0.39556]
[1724903348756,0.12367778,2527.6,2527.4,0.39556]
[1724903348974,0.7579,2527.5,2527.4,0.39556]
[1724903349157,1.1314,2527.5,2527.4,0.39556]
[1724903349358,1.1314,2527.5,2527.3,0.39557]
[1724903349565,3.72706137,2527.4,2527.1,0.3956]
[1724903349766,3.2078,2527.4,2526.9,4.63373954]
[1724903349968,0.39559,2527.2,2526.9,3.60936954]
[1724903350164,0.7579,2527.1,2526.9,3.60936954]
[1724903350380,1.1336,2527.1,2526.9,3.60936954]
[1724903350574,1.1336,2527.1,2526.9,7.56696954]
[1724903352676,1.1336,2527.1,2526.9,4.35916954]
[1724903352875,1.1336,2527.1,2526.9,3.96353954]
[1724903353173,1.1336,2527.1,2526.9,4.35917954]
[1724903353476,1.1336,2527.1,2526.9,3.96353954]
[1724903354274,1.1336,2527.1,2526.9,0.00593954]
[1724903356571,3.2078,2527.0,2526.9,0.00593954]
[1724903356770,3.33151519,2527.0,2526.9,0.00593954]
[1724903357268,3.2078,2527.0,2526.9,0.00593954]
[1724903357474,3.72713523,2527.0,2526.9,0.00593954]
[1724903357665,7.68473523,2527.0,2526.9,0.00593954]
[1724903357866,7.68473776,2527.0,2526.9,0.00593954]
[1724903362268,7.28911776,2527.0,2526.9,0.00593954]
[1724903363270,3.33151776,2527.0,2526.9,0.00593954]
[1724903364581,0.12371776,2527.0,2526.9,0.00593954]
[1724903364773,3.33151776,2527.0,2526.9,0.00593954]
[1724903366585,3.33151776,2527.0,2526.9,0.36983954]
[1724903367879,3.33151776,2527.0,2526.9,0.00593954]
[1724903368475,5.14713776,2527.0,2526.9,0.00593954]
[1724903368676,4.75151776,2527.0,2526.9,0.00593954]
[1724903370385,4.75151776,2527.0,2526.9,0.40157954]
[1724903371390,4.75151776,2527.0,2526.9,0.40157954]
[1724903372881,3.33151776,2527.0,2526.9,0.40157954]
[1724903373685,0.12371776,2527.0,2526.9,0.40157954]
[1724903373887,3.33151776,2527.0,2526.9,0.40157954]
[1724903374486,3.33151776,2527.0,2526.9,0.00593954]
[1724903374985,3.72713776,2527.0,2526.9,0.00593954]
[1724903375680,3.33151776,2527.0,2526.9,0.00593954]
[1724903376279,3.72713776,2527.0,2526.9,0.00593954]
[1724903377276,3.33152077,2527.0,2526.9,0.00593954]
[1724903377490,3.33152077,2527.0,2526.9,0.40157954]
[1724903378185,3.2078,2527.0,2526.9,0.40157954]
[1724903378595,3.33151911,2527.0,2526.9,0.40157954]
[1724903379278,3.33151822,2527.0,2526.9,0.40157954]
[1724903379484,3.33151822,2527.0,2526.9,0.00593954]
[1724903379991,3.33151822,2527.0,2526.9,0.40157954]
[1724903380680,3.2078,2527.0,2526.9,0.40157954]
[1724903380885,3.3315184,2527.0,2526.9,0.40157954]
[1724903381085,3.2078,2527.0,2526.9,4.35917954]
[1724903381285,3.33150753,2527.0,2526.9,0.40157954]
[1724903382691,3.2078,2527.0,2526.9,0.78267954]
[1724903383394,3.2078,2527.0,2526.9,0.00593954]
[1724903383590,3.33151791,2527.0,2526.9,0.00593954]
[1724903384190,3.33151791,2527.0,2526.4,0.3811]
[1724903384191,0.39568,2526.7,2526.4,0.3811]
[1724903384390,1.42,2526.5,2526.4,0.77342]
[1724903384695,3.9662,2526.6,2526.4,0.77342]
[1724903385202,3.9662,2526.6,2526.4,0.3777]
[1724903385798,3.9662,2526.6,2526.4,0.77341]
[1724903387997,3.2078,2526.5,2526.4,0.77341]
[1724903391596,3.2078,2526.5,2526.4,0.3777]
[1724903391796,3.33153339,2526.5,2526.4,0.3777]
[1724903391996,3.33153642,2526.5,2526.4,0.3777]
[1724903393397,3.33153642,2526.5,2526.4,0.77342]
[1724903395294,3.2078,2526.5,2526.4,0.77342]
[1724903395498,0.12373425,2526.5,2526.4,0.77342]
[1724903396202,1.54373425,2526.5,2526.2,0.75174]
[1724903396399,0.12373425,2526.4,2526.2,0.75174]
[1724903396804,0.3893,2526.3,2526.2,0.75174]
[1724903397000,0.51303425,2526.3,2526.2,0.75174]
[1724903397305,0.51303425,2526.3,2526.2,4.71014]
[1724903397504,0.51303425,2526.3,2526.2,4.35414]
[1724903398698,1.42,2526.5,2526.3,0.39573]
[1724903398904,1.783,2526.5,2526.4,0.3517]
[1724903399208,1.90673596,2526.5,2526.4,0.3517]
[1724903400299,1.90673596,2526.5,2526.4,0.74742]
[1724903400300,0.12373596,2526.5,2526.4,0.74742]
[1724903400503,0.12373596,2526.5,2526.4,0.3517]
[1724903400702,0.12373596,2526.5,2526.4,0.74742]
[1724903400703,0.86993596,2526.5,2526.4,0.74742]
[1724903401113,0.7462,2526.5,2526.4,0.74742]
[1724903401507,0.86993445,2526.5,2526.4,0.74742]
[1724903401909,0.48673445,2526.5,2526.4,0.74742]
[1724903403122,0.12373445,2526.5,2526.4,0.74742]
[1724903404013,0.12373445,2526.5,2526.4,1.10852]
[1724903404526,1.1163,2526.7,2526.5,0.39569]
[1724903404827,0.12372645,2526.6,2526.5,0.39569]
[1724903408318,0.84652645,2526.6,2526.5,0.39569]
[1724903408528,2.26652645,2526.6,2526.4,0.74741]
[1724903408726,0.12372645,2526.5,2526.4,0.74741]
[1724903409625,3.33152645,2526.5,2526.4,0.74741]
[1724903409825,3.33152645,2526.5,2526.3,0.39572]
[1724903410019,1.54372645,2526.4,2526.2,0.39574]
[1724903410219,0.12372645,2526.3,2526.2,0.39574]
[1724903410721,0.12372645,2526.3,2526.2,4.35414]
[1724903411225,0.1237352,2526.4,2526.2,3.9584]
[1724903411524,0.1237352,2526.3,2526.2,0.39575]
[1724903411718,0.12373522,2526.4,2526.3,0.39573]
[1724903411923,3.2078,2526.5,2526.4,0.39572]
[1724903412121,3.33153522,2526.5,2526.4,0.39572]
[1724903413827,0.12373522,2526.5,2526.4,0.39572]
[1724903414029,3.33153522,2526.5,2526.4,0.39572]
[1724903414619,0.12373522,2526.5,2526.4,0.39572]
[1724903414825,3.33153522,2526.5,2526.4,0.39572]
[1724903415027,3.33153522,2526.5,2526.3,0.39572]
[1724903415219,0.12373522,2526.4,2526.2,0.39574]
[1724903415421,0.12373522,2526.4,2526.3,0.39573]
[1724903416729,0.12373522,2526.4,2526.3,5.77413]
[1724903416730,0.10200993,2526.4,2526.3,5.77413]
[1724903416930,0.12372795,2526.7,2526.3,12.36774]
[1724903417125,3.21373954,2526.8,2526.7,0.39567]
[1724903417428,3.33745621,2526.8,2526.7,1.38485]
[1724903417630,3.33745621,2526.8,2526.7,12.07315]
[1724903417835,3.33744595,2526.8,2526.7,12.07315]
[1724903418132,3.21373954,2526.8,2526.7,12.07315]
[1724903418335,3.33744717,2526.8,2526.7,12.07315]
[1724903418923,0.12964717,2526.8,2526.7,12.07315]
[1724903419227,0.00593954,2526.8,2526.7,12.07315]
[1724903422032,0.00593954,2526.8,2526.7,6.07315]
[1724903422723,0.00593954,2526.8,2526.7,12.07315]
[1724903423043,0.00593954,2526.8,2526.7,6.07315]
[1724903424730,0.00593954,2526.8,2526.7,12.07315]
[1724903424932,0.00593954,2526.8,2526.7,6.07315]
[1724903425125,0.00593954,2526.8,2526.7,12.07315]
[1724903428333,9.54e-06,2526.8,2526.7,13.06233]
[1724903428533,9.54e-06,2526.8,2526.7,13.25621037]
[1724903429028,9.54e-06,2526.8,2526.7,54.05621037]
[1724903430136,9.54e-06,2526.8,2526.7,57.26401037]
[1724903430429,9.54e-06,2526.8,2526.7,57.49126229]
[1724903430929,9.54e-06,2526.8,2526.7,60.58626229]
[1724903431135,9.54e-06,2526.8,2526.7,57.49126229]
[1724903432837,5.7306,2527.8,2526.8,0.9891]
[1724903433044,0.12368581,2527.7,2527.1,1.42]
[1724903433335,1.42,2527.4,2527.1,0.3956]
[1724903433541,0.7326,2527.3,2527.0,0.39561]
[1724903433834,3.2078,2527.2,2526.9,0.39563]
[1724903434242,0.371,2527.1,2526.9,0.39563]
[1724903435332,0.39563,2527.0,2526.5,0.00593954]
[1724903435533,1.42,2526.8,2526.6,0.39568]
[1724903435837,0.3724,2526.7,2526.6,0.39568]
[1724903443742,0.3724,2526.7,2526.5,0.00593954]
[1724903443934,0.3702,2526.6,2526.5,0.00593954]
[1724903444834,0.3702,2526.6,2526.5,0.40163954]
[1724903445442,0.3702,2526.6,2526.5,0.00593954]
[1724903447544,0.3702,2526.6,2526.5,0.40163954]
[1724903450448,0.3702,2526.6,2526.5,0.00593954]
[1724903450648,4.3278,2526.6,2526.5,0.00593954]
[1724903451147,4.84721603,2526.6,2526.5,0.00593954]
[1724903451347,4.45153603,2526.6,2526.5,0.00593954]
[1724903453444,4.3278,2526.6,2526.5,0.00593954]
[1724903453753,4.45153359,2526.6,2526.5,0.00593954]
[1724903454143,4.84721359,2526.6,2526.5,0.00593954]
[1724903456251,4.8472183,2526.6,2526.5,0.00593954]
[1724903457150,8.0550183,2526.6,2526.5,0.00593954]
[1724903457943,4.8472183,2526.6,2526.5,0.00593954]
[1724903458145,8.0550183,2526.6,2526.5,0.00593954]
[1724903459548,7.93128,2526.6,2526.5,0.00593954]
[1724903459743,8.0550267,2526.6,2526.5,0.00593954]
[1724903462247,8.05502161,2526.6,2526.5,0.00593954]
[1724903464244,3.97368,2526.6,2526.5,0.00593954]
[1724903464447,4.09742161,2526.6,2526.5,0.00593954]
[1724903465456,4.09742161,2526.6,2526.5,0.40163954]
[1724903465855,7.6593392,2526.6,2526.5,0.40163954]
[1724903466043,7.5356,2526.6,2526.5,0.40163954]
[1724903466349,3.2078,2526.6,2526.5,0.40163954]
[1724903475258,3.33153299,2526.6,2526.5,0.40163954]
[1724903476751,3.2078,2526.6,2526.5,0.40163954]
[1724903476957,3.33153146,2526.6,2526.5,0.40163954]
[1724903477958,0.12373146,2526.6,2526.5,0.40163954]
[1724903480656,5.0002,2526.7,2526.5,0.40163954]
[1724903480856,0.12373142,2526.6,2526.5,0.40163954]
[1724903481055,5.0002,2526.7,2526.5,0.40163954]
[1724903481468,0.12373142,2526.6,2526.5,0.40163954]
[1724903484565,0.12372982,2526.6,2526.5,0.40163954]
[1724903485970,0.1237284,2526.6,2526.5,0.40163954]
[1724903486861,0.1237284,2526.6,2526.5,0.00593954]
[1724903487164,1.5437284,2526.6,2526.5,0.40163954]
[1724903488568,1.54373272,2526.6,2526.5,0.40163954]
[1724903489277,1.54373272,2526.6,2526.5,0.00593954]
[1724903490672,1.54373272,2526.6,2526.5,0.40163954]
[1724903491269,1.54373272,2526.6,2526.5,0.00593954]
[1724903491468,0.12373272,2526.6,2526.5,0.40163954]
[1724903491773,5.89701272,2526.6,2526.5,0.00593954]
[1724903492369,5.89702117,2526.6,2526.5,0.00593954]
[1724903492874,5.89701575,2526.6,2526.5,0.00593954]
[1724903493676,5.50133575,2526.6,2526.5,0.00593954]
[1724903493872,5.89701575,2526.6,2526.5,0.00593954]
[1724903495787,5.89701575,2526.6,2526.1,0.374]
[1724903495788,0.39576,2526.2,2526.0,0.39578]
[1724903495982,5.11773575,2526.1,2526.0,0.39578]
[1724903496183,5.3487,2526.1,2526.0,0.39578]
[1724903496389,9.43086281,2526.1,2526.0,0.39578]
[1724903497692,9.78636281,2526.1,2526.0,0.39578]
[1724903499992,8.36636281,2526.1,2526.0,0.39578]
[1724903500193,8.2426,2526.1,2526.0,0.39578]
[1724903500402,4.40795839,2526.1,2526.0,0.39578]
[1724903500593,3.33155839,2526.1,2526.0,0.39578]
[1724903500793,0.12375839,2526.1,2526.0,5.77418]
[1724903501103,0.12375839,2526.1,2526.0,0.39578]
[1724903501399,0.12374824,2526.1,2526.0,0.39578]
[1724903501699,0.51184824,2526.1,2526.0,0.39578]
[1724903502004,0.88384824,2526.1,2526.0,0.39578]
[1724903503900,0.12374824,2526.1,2526.0,0.39578]
[1724903504104,0.7344,2526.3,2526.1,0.39576]
[1724903504309,0.123755,2526.2,2526.1,0.39576]
[1724903505700,0.123755,2526.2,2526.1,4.35416]
[1724903506093,0.123755,2526.2,2526.1,4.71046]
[1724903507902,3.2078,2526.4,2526.3,0.39573]
[1724903508403,3.33153552,2526.4,2526.2,0.3553]
[1724903508605,0.50933552,2526.3,2526.2,0.75105]
[1724903508802,1.25473552,2526.3,2526.2,0.75105]
[1724903510407,2.67473552,2526.3,2526.1,0.39576]
[1724903510610,0.12373552,2526.2,2526.1,0.39576]
[1724903510809,0.12373552,2526.2,2525.9,0.7332]
[1724903510810,0.12373552,2526.2,2526.0,0.39577]
[1724903511013,3.2078,2526.1,2526.0,0.39577]
[1724903511309,3.33153552,2526.1,2526.0,0.39577]
[1724903511712,3.2078,2526.1,2526.0,0.39577]
[1724903512009,3.33155602,2526.1,2526.0,0.39577]
[1724903512410,3.33155602,2526.1,2525.9,0.75109]
[1724903512610,0.47935602,2526.0,2525.9,0.75109]
[1724903515610,0.3556,2526.0,2525.9,0.75109]
[1724903515816,0.47936105,2526.0,2525.9,0.75109]
[1724903516003,0.3556,2526.0,2525.9,0.75109]
[1724903516210,0.47936105,2526.0,2525.9,0.75109]
[1724903516716,0.12376105,2526.0,2525.9,0.75109]
[1724903516908,0.12376105,2526.0,2525.9,1.13059]
[1724903518509,3.2078,2526.1,2526.0,0.39578]
[1724903518913,3.33155052,2526.1,2526.0,0.39578]
[1724903519306,3.2078,2526.1,2526.0,0.39578]
[1724903519507,3.33155244,2526.1,2526.0,0.39578]
[1724903522413,3.33155183,2526.1,2526.0,0.39578]
[1724903523712,3.2078,2526.1,2526.0,4.35418]
[1724903523913,3.2078,2526.1,2526.0,5.77418]
[1724903524115,3.33154681,2526.1,2526.0,5.77418]
[1724903526719,3.2078,2526.1,2526.0,5.77418]
[1724903528416,3.2078,2526.1,2526.0,46.57418]
[1724903528616,3.5894,2526.4,2526.3,0.39573]
[1724903528825,3.71314253,2526.4,2526.3,0.39573]
[1724903529036,3.71314259,2526.4,2526.3,0.39573]
[1724903532325,3.5894,2526.4,2526.3,0.39573]
[1724903532525,3.71313921,2526.4,2526.3,0.39573]
[1724903532933,0.12373921,2526.4,2526.3,5.77413]
[1724903533230,0.11779967,2526.4,2526.3,0.39573]
[1724903533434,0.84989967,2526.4,2526.3,0.39573]
[1724903534327,0.11779967,2526.4,2526.3,4.35413]
[1724903534725,0.00593954,2526.5,2526.4,0.39572]
[1724903534931,0.00593954,2526.5,2526.4,5.07542]
[1724903536034,0.00593954,2526.5,2526.4,6.49542]
[1724903536430,0.00593954,2526.5,2526.4,12.49542]
[1724903538333,0.00593954,2526.5,2526.4,13.68314573]
[1724903538527,9.54e-06,2526.5,2526.4,14.5212737]
[1724903539930,9.54e-06,2526.5,2526.4,5.07542]
[1724903541428,9.54e-06,2526.5,2526.4,0.75682]
[1724903546639,9.54e-06,2526.5,2526.4,4.71522]
[1724903546832,9.54e-06,2526.5,2526.4,12.50772]
[1724903547234,9.54e-06,2526.5,2526.4,6.13522]
[1724903551640,9.54e-06,2526.5,2526.4,7.12452]
[1724903553438,9.54e-06,2526.5,2526.4,13.12452]
[1724903555340,9.54e-06,2526.5,2526.4,14.11382]
[1724903557841,0.00450954,2526.5,2526.4,14.11382]
[1724903561340,0.00450954,2526.5,2526.4,10.71522]
[1724903561540,0.00450954,2526.5,2526.4,4.71522]
[1724903563145,0.00450954,2526.5,2526.4,0.39572]
[1724903570662,0.00450954,2526.5,2526.3,0.39572]
[1724903570950,0.00450954,2526.5,2526.2,0.40167954]
[1724903570951,1.08140954,2526.5,2526.2,0.40167954]
[1724903571156,4.6278,2526.3,2526.2,0.00593954]
[1724903571343,4.75153355,2526.3,2526.2,0.00593954]
[1724903572661,8.70993355,2526.3,2526.2,0.00593954]
[1724903572864,7.28993355,2526.3,2526.2,0.00593954]
[1724903573052,7.1662,2526.3,2526.2,0.00593954]
[1724903573362,7.28994475,2526.3,2526.2,0.00593954]
[1724903576265,7.28994475,2526.3,2525.7,1.38894029]
[1724903576266,15.10568475,2526.3,2525.7,0.39583]
[1724903576453,4.6278,2526.0,2525.7,0.39583]
[1724903576650,0.83224475,2525.9,2525.7,0.39583]
[1724903576850,0.12376626,2525.8,2525.5,0.39585]
[1724903577051,0.7085,2525.9,2525.5,0.39585]
[1724903577256,0.1237693,2525.8,2525.6,0.39584]
[1724903577451,0.7085,2525.9,2525.6,0.39584]
[1724903577649,0.12376957,2525.8,2525.6,0.39584]
[1724903577847,0.7085,2525.9,2525.6,0.39584]
[1724903578058,0.12376947,2525.8,2525.6,0.39584]
[1724903578253,0.7085,2525.9,2525.6,0.39584]
[1724903579059,0.7085,2525.9,2525.3,41.1888]
[1724903579257,1.42,2525.5,2525.0,1.42]
[1724903579463,0.751,2525.4,2525.1,0.39591]
[1724903579661,1.1108,2525.4,2525.2,0.3959]
[1724903580257,1.1108,2525.4,2525.2,1.42]
[1724903580460,3.2078,2525.7,2525.5,0.39586]
[1724903580761,0.87107108,2525.6,2525.4,1.42]
[1724903581065,0.7473,2525.6,2525.4,1.42]
[1724903581452,0.7473,2525.6,2525.3,0.39588]
[1724903582166,0.7473,2525.6,2525.2,0.3959]
[1724903582474,0.7473,2525.6,2525.2,1.42]
[1724903582769,0.7473,2525.6,2525.4,0.39587]
[1724903583063,0.7473,2525.6,2525.2,1.42]
[1724903583457,0.7473,2525.6,2525.4,0.39587]
[1724903583869,0.7473,2525.6,2525.5,0.39586]
[1724903585070,0.7473,2525.6,2525.5,0.76726]
[1724903585571,0.3875,2525.6,2525.5,0.76726]
[1724903585958,3.2078,2525.7,2525.6,0.39584]
[1724903586159,3.2078,2525.7,2525.6,0.75984]
[1724903586367,3.9441,2525.7,2525.6,0.39584]
[1724903586565,3.9441,2525.7,2525.5,1.7914]
[1724903586566,3.9441,2525.7,2525.5,2.18724]
[1724903586869,0.3651,2525.6,2525.5,0.76724]
[1724903595367,0.7363,2525.7,2525.6,0.39584]
[1724903595567,3.2078,2525.8,2525.6,0.39584]
[1724903595568,3.2078,2525.8,2525.7,0.39583]
[1724903595768,3.2078,2525.8,2525.6,0.39583]
[1724903595967,0.3729,2525.7,2525.6,0.39583]
[1724903597174,0.3729,2525.7,2525.5,1.7914]
[1724903597175,3.2078,2525.8,2525.7,0.39583]
[1724903601463,3.2078,2525.8,2525.5,1.7914]
[1724903601670,3.2078,2525.8,2525.5,0.3714]
[1724903602275,3.2078,2525.8,2525.3,0.3629]
[1724903602473,4.6278,2525.5,2525.0,0.7573]
[1724903602679,0.7431,2525.4,2525.2,0.3959]
[1724903602976,1.1112,2525.4,2525.2,0.3959]
[1724903604779,1.1112,2525.4,2525.1,0.39591]
[1724903605468,1.1112,2525.4,2525.2,0.3959]
[1724903606180,1.1112,2525.4,2525.0,2.5504]
[1724903606378,1.1112,2525.4,2525.1,0.39592]
[1724903606781,1.1112,2525.4,2525.2,0.3959]
[1724903609268,1.1112,2525.4,2525.1,0.39591]
[1724903609476,1.1112,2525.4,2525.0,0.39593]
[1724903609784,2.5312,2525.4,2525.0,0.39593]
[1724903610181,2.5312,2525.4,2525.2,0.3959]
[1724903610485,2.5312,2525.4,2525.3,0.39589]
[1724903610486,1.1112,2525.4,2525.3,0.39589]
[1724903611082,1.1112,2525.4,2525.3,0.75799]
[1724903611479,3.2078,2525.5,2525.4,0.39587]
[1724903615078,0.3577,2525.6,2525.3,0.3621]
[1724903615280,0.3577,2525.6,2525.5,0.39586]
[1724903616190,3.689276,2525.6,2525.5,0.39586]
[1724903616690,3.5655,2525.6,2525.5,0.39586]
[1724903616880,3.68927706,2525.6,2525.5,0.39586]
[1724903617191,3.68927594,2525.6,2525.5,0.39586]
[1724903621894,3.68927746,2525.6,2525.5,0.39586]
[1724903623603,3.5655,2525.6,2525.5,0.39586]
[1724903623888,3.68927701,2525.6,2525.5,0.39586]
[1724903624389,3.33157701,2525.6,2525.5,0.39586]
[1724903624988,7.65767701,2525.6,2525.3,0.39588]